bitfinex/quotes_SOLUSD_20241229
["timestamp","ask_amount","ask_price","bid_price","bid_amount"]
[1735465782662,9.95253164,197.07,197.04,20.0]
[1735465782841,1.5159,197.09,197.05,20.0]
[1735465783041,9.95253164,197.07,197.05,20.0]
[1735465783747,9.95253164,197.07,197.0,9.952531]
[1735465783948,9.95253164,197.06,197.0,9.95253164]
[1735465784130,9.95253164,197.06,197.03,20.0]
[1735465784337,9.95253164,197.06,197.04,20.0]
[1735465785257,9.95253164,197.06,196.98,23.776884]
[1735465785474,1.5159,197.09,197.0,9.95253164]
[1735465785770,1.5159,197.09,196.97,9.952531]
[1735465785771,9.95253164,197.08,197.05,20.0]
[1735465785931,11.46843164,197.09,197.05,20.0]
[1735465787554,1.5159,197.09,197.05,20.0]
[1735465788062,1.5371,197.14,197.06,43.776884]
[1735465788264,9.95253164,197.12,197.06,43.776884]
[1735465788669,1.5371,197.14,197.06,53.72941564]
[1735465788876,9.95253164,197.13,197.06,53.72941564]
[1735465789451,9.95253164,197.13,197.08,23.776884]
[1735465789664,9.95253164,197.13,197.11,20.0]
[1735465789861,1.5371,197.14,197.11,20.0]
[1735465790176,9.95253164,197.13,197.11,20.0]
[1735465792049,9.95253164,197.14,197.11,20.0]
[1735465795277,2.48820862,197.19,197.12,23.776884]
[1735465795466,9.95253164,197.17,197.12,23.776884]
[1735465796875,9.95253164,197.18,197.15,20.0]
[1735465800685,9.95253164,197.17,197.15,20.0]
[1735465800994,1.5371,197.19,197.15,20.0]
[1735465800995,9.95253164,197.16,197.15,20.0]
[1735465801290,9.95253164,197.16,197.07,20.0]
[1735465801492,9.95253164,197.14,197.07,20.0]
[1735465801665,9.95253164,197.14,197.12,20.0]
[1735465801987,9.95253164,197.15,197.12,20.0]
[1735465804483,9.95253164,197.17,197.1,9.95253164]
[1735465804689,9.95253164,197.17,197.13,20.0]
[1735465805393,9.95253164,197.14,197.02,7.93273808]
[1735465805577,9.95253164,197.1,197.02,7.93273808]
[1735465805886,9.95253164,197.09,197.02,10.43378729]
[1735465806070,9.95253164,197.09,197.02,20.38631893]
[1735465806266,9.95253164,197.09,197.06,20.0]
[1735465807196,1.6197,197.11,197.07,43.776884]
[1735465809303,9.95253164,197.12,197.07,43.776884]
[1735465809510,9.95253164,197.13,197.07,43.776884]
[1735465811606,9.95253164,197.14,197.07,53.72941564]
[1735465811904,11.57223164,197.16,197.13,20.0]
[1735465812410,1.6197,197.16,197.13,20.0]
[1735465812574,11.57223164,197.16,197.13,20.0]
[1735465813780,9.95253164,197.15,197.13,20.0]
[1735465816617,1.6197,197.16,197.13,20.0]
[1735465819608,9.95253164,197.17,197.13,20.0]
[1735465821805,9.95253164,197.15,197.13,20.0]
[1735465822882,9.95253164,197.15,197.11,20.0]
[1735465824684,0.95108438,197.19,197.1,23.776884]
[1735465824879,9.95253164,197.16,197.1,23.776884]
[1735465825493,2.55372384,197.21,197.13,20.0]
[1735465825896,1.6027,197.25,197.16,23.776884]
[1735465826207,9.95253164,197.22,197.16,23.776884]
[1735465826395,9.95253164,197.21,197.17,20.0]
[1735465826887,9.95253164,197.19,197.16,20.0]
[1735465827209,1.3711195,197.24,197.16,20.0]
[1735465827415,9.95253164,197.19,197.16,20.0]
[1735465830220,9.95253164,197.2,197.16,20.0]
[1735465838717,9.95253164,197.2,197.12,20.0]
[1735465839038,9.95253164,197.2,197.16,20.0]
[1735465845213,9.95253164,197.19,197.12,9.95253164]
[1735465845416,9.95253164,197.19,197.13,23.776884]
[1735465845937,9.95253164,197.19,197.15,20.0]
[1735465847646,1.3711195,197.24,197.06,24.62106908]
[1735465847647,9.95253164,197.16,197.06,24.62106908]
[1735465847824,10.90363853,197.15,197.11,20.0]
[1735465848026,10.90363853,197.15,197.12,20.0]
[1735465849735,9.95253164,197.14,197.08,9.95253164]
[1735465849938,9.95253164,197.14,197.1,20.0]
[1735465850120,9.95253164,197.13,197.04,20.333184]
[1735465850323,9.95253164,197.13,197.06,9.95253164]
[1735465850533,9.95253164,197.13,197.07,23.776884]
[1735465850836,2.55688931,197.18,197.1,20.0]
[1735465850837,9.95253164,197.14,197.1,20.0]
[1735465853838,9.95253164,197.16,197.12,20.0]
[1735465857247,1.6057,197.18,197.12,20.0]
[1735465857448,1.6057,197.18,197.07,23.776884]
[1735465857449,9.95253164,197.17,197.11,23.776884]
[1735465860437,9.95253164,197.16,197.14,20.0]
[1735465861164,9.95253164,197.17,197.14,20.0]
[1735465861320,9.95253164,197.17,197.1,9.95253164]
[1735465861519,9.95253164,197.16,197.12,20.0]
[1735465866366,1.6057,197.18,197.13,20.0]
[1735465866570,9.95253164,197.17,197.13,20.0]
[1735465872163,1.6057,197.18,197.13,20.0]
[1735465872536,11.55823164,197.18,197.13,20.0]
[1735465880564,1.6057,197.18,197.15,20.0]
[1735465880869,9.95253164,197.19,197.15,20.0]
[1735465881867,9.95253164,197.2,197.15,20.0]
[1735465882070,1.5308,197.23,197.15,43.776884]
[1735465882363,9.95253164,197.21,197.15,43.776884]
[1735465882958,1.5308,197.23,197.15,43.776884]
[1735465883150,9.95253164,197.21,197.15,43.776884]
[1735465884566,9.95253164,197.2,197.15,43.776884]
[1735465884881,9.95253164,197.21,197.15,43.776884]
[1735465885178,9.95253164,197.2,197.15,43.776884]
[1735465886363,1.5308,197.23,197.15,43.776884]
[1735465886364,9.95253164,197.19,197.15,43.776884]
[1735465886572,9.95253164,197.18,197.11,9.95253164]
[1735465886945,9.95253164,197.18,197.15,20.0]
[1735465887478,9.95253164,197.17,197.15,20.0]
[1735465888170,9.95253164,197.17,197.11,53.72941564]
[1735465888871,9.95253164,197.17,197.12,2.50408212]
[1735465889478,9.95253164,197.17,197.13,2.50408212]
[1735465890285,9.95253164,197.18,197.11,53.72941564]
[1735465898294,2.48159803,197.23,197.11,53.72941564]
[1735465898487,9.95253164,197.18,197.11,53.72941564]
[1735465901696,9.95253164,197.18,197.12,3.7386373]
[1735465902676,9.95253164,197.18,197.13,3.7386373]
[1735465903093,9.95253164,197.18,197.11,53.72941564]
[1735465903901,9.95253164,197.14,197.12,3.73940238]
[1735465904089,9.95253164,197.13,197.12,3.73940238]
[1735465904480,9.95253164,197.13,197.07,23.776884]
[1735465904893,9.95253164,197.13,197.1,20.0]
[1735465905199,9.95253164,197.13,197.08,3.74002581]
[1735465905596,9.95253164,197.13,197.11,3.74002581]
[1735465906307,9.95253164,197.13,197.09,20.0]
[1735465907097,9.95253164,197.13,197.1,3.73959726]
[1735465908007,9.95253164,197.13,197.11,3.73959726]
[1735465908478,2.61382295,197.16,197.09,20.0]
[1735465908679,9.95253164,197.13,197.09,20.0]
[1735465909198,9.95253164,197.13,197.1,3.73845131]
[1735465909779,9.95253164,197.13,197.11,3.73845131]
[1735465910477,9.95253164,197.13,197.09,20.0]
[1735465911003,9.95253164,197.13,197.1,3.7380339]
[1735465911179,9.95253164,197.12,197.1,3.7380339]
[1735465911503,9.95253164,197.12,197.11,3.7380339]
[1735465915307,9.95253164,197.13,197.11,3.7380339]
[1735465916207,9.95253164,197.13,197.07,29.95253164]
[1735465916788,9.95253164,197.13,197.08,3.7370978]
[1735465917112,9.95253164,197.13,197.09,20.0]
[1735465917610,9.95253164,197.13,197.09,23.7370978]
[1735465918308,9.95253164,197.13,197.1,3.7370978]
[1735465918478,0.95114826,197.15,197.1,3.7370978]
[1735465918681,9.95253164,197.13,197.1,3.7370978]
[1735465918889,9.95253164,197.13,197.11,3.7370978]
[1735465919412,9.95253164,197.13,197.09,20.0]
[1735465920211,9.95253164,197.12,197.1,3.73593815]
[1735465921117,9.95253164,197.12,197.11,3.73593815]
[1735465922129,9.95253164,197.13,197.11,3.73593815]
[1735465922529,9.95253164,197.13,197.09,20.0]
[1735465923128,9.95253164,197.13,197.1,3.7356739]
[1735465923924,9.95253164,197.13,197.09,20.0]
[1735465927336,9.95253164,197.12,197.09,20.0]
[1735465928133,9.95253164,197.13,197.09,20.0]
[1735465931136,9.95253164,197.12,197.09,20.0]
[1735465932735,9.95253164,197.11,197.04,9.952532]
[1735465932914,9.95253164,197.09,197.02,9.95253164]
[1735465933342,9.95253164,197.09,197.04,23.776884]
[1735465933844,9.95253164,197.09,197.05,3.73677547]
[1735465934846,9.95253164,197.09,197.06,23.73677547]
[1735465935432,9.95253164,197.09,197.06,20.0]
[1735465936546,0.95114826,197.15,197.06,20.0]
[1735465936743,9.95253164,197.12,197.07,3.73685128]
[1735465937550,9.95253164,197.12,197.06,23.776884]
[1735465938044,9.95253164,197.12,197.09,20.0]
[1735465938251,9.95253164,197.13,197.09,20.0]
[1735465939044,0.95114826,197.15,197.09,20.0]
[1735465939245,9.95253164,197.13,197.09,20.0]
[1735465939621,9.95253164,197.12,197.09,20.0]
[1735465942446,9.95253164,197.11,197.09,20.0]
[1735465945833,9.95253164,197.1,197.03,9.95253164]
[1735465946032,9.95253164,197.1,197.05,23.776884]
[1735465946541,9.95253164,197.11,197.08,20.0]
[1735465948732,0.95114826,197.15,197.08,20.0]
[1735465948934,9.95253164,197.12,197.08,20.0]
[1735465950557,9.95253164,197.11,197.08,20.0]
[1735465962363,9.95253164,197.1,197.08,20.0]
[1735465972274,9.95253164,197.1,197.09,3.74849432]
[1735465972474,9.95253164,197.11,197.09,3.74849432]
[1735465972773,0.95114826,197.15,197.09,23.776884]
[1735465972955,9.95253164,197.13,197.09,23.776884]
[1735465973377,9.95253164,197.13,197.1,3.74889529]
[1735465973869,9.95253164,197.14,197.1,3.74889529]
[1735465974082,9.95253164,197.13,197.09,23.776884]
[1735465976269,9.95253164,197.12,197.09,23.776884]
[1735465977867,9.95253164,197.12,197.03,7.93273808]
[1735465978186,9.95253164,197.1,197.05,9.95253164]
[1735465978689,9.95253164,197.1,197.09,20.0]
[1735465981384,2.61393815,197.16,197.05,43.776884]
[1735465981560,2.11393815,197.16,197.05,43.776884]
[1735465985469,2.11393815,197.16,197.05,20.0]
[1735465986384,2.11393815,197.16,197.03,20.0]
[1735465986580,2.11393815,197.16,197.04,43.776884]
[1735465993489,8.0298,197.15,197.04,43.776884]
[1735465993676,0.95130259,197.14,197.04,43.776884]
[1735465993991,0.95130259,197.14,197.03,20.0]
[1735465994528,0.95130259,197.14,197.04,23.776884]
[1735465994806,0.95130259,197.14,197.03,23.776884]
[1735466007223,0.95130259,197.14,196.98,14.75373808]
[1735466007606,1.6333,197.13,196.98,14.75373808]
[1735466007827,0.95156968,197.12,197.02,20.0]
[1735466009923,0.95156968,197.12,196.96,20.0]
[1735466010311,20.95156968,197.12,196.97,23.776884]
[1735466010510,1.6403,197.1,196.94,0.7204]
[1735466010706,0.95171825,197.09,196.96,20.0]
[1735466010909,0.95171825,197.09,197.0,20.0]
[1735466015322,0.95171825,197.09,196.94,0.7204]
[1735466015323,20.0,197.08,196.94,0.7204]
[1735466015525,20.0,197.08,196.93,6.4748]
[1735466015526,0.95172235,197.07,196.93,6.4748]
[1735466015727,1.6403,197.06,196.96,20.0]
[1735466015930,0.95184315,197.05,196.96,20.0]
[1735466018732,7.56104315,197.05,196.91,43.776884]
[1735466025014,0.95170409,197.1,196.96,20.0]
[1735466025330,0.95170409,197.1,197.0,20.0]
[1735466027743,8.2495,197.11,197.04,20.0]
[1735466029945,1.6403,197.11,197.05,23.776884]
[1735466030152,0.95125964,197.15,197.05,23.776884]
[1735466033521,0.95125964,197.15,197.08,20.0]
[1735466035660,7.7645,197.16,197.08,20.0]
[1735466036239,7.7645,197.16,197.09,23.776884]
[1735466036648,1.5889,197.16,197.09,23.776884]
[1735466043755,1.5889,197.16,197.04,6.3535]
[1735466043958,0.95119874,197.15,197.07,20.0]
[1735466044151,1.5889,197.16,197.07,20.0]
[1735466044576,1.5889,197.16,197.08,23.776884]
[1735466045959,1.5889,197.16,197.07,20.0]
[1735466046559,1.5889,197.16,197.08,23.776884]
[1735466046755,0.95120937,197.2,197.15,20.0]
[1735466046939,7.7857,197.21,197.15,20.0]
[1735466047434,0.95086849,197.2,197.12,20.0]
[1735466047636,7.7857,197.21,197.12,20.0]
[1735466048435,1.6101,197.21,197.12,20.0]
[1735466054764,1.37118733,197.24,197.13,20.0]
[1735466055069,1.37118733,197.24,197.15,23.776884]
[1735466056355,0.42034055,197.24,197.19,23.776884]
[1735466058974,0.42034055,197.24,197.22,20.0]
[1735466059273,0.42034055,197.24,197.23,23.776884]
[1735466063877,1.6471,197.36,197.27,23.776884]
[1735466065149,1.6471,197.36,197.22,0.7204]
[1735466065454,1.6471,197.36,197.13,5.83042236]
[1735466065455,6.3583,197.34,197.17,7.0476]
[1735466065663,0.95044433,197.33,197.17,7.0476]
[1735466066377,0.95044433,197.33,197.2,20.0]
[1735466066555,0.95044433,197.33,197.17,7.0476]
[1735466067177,0.95044433,197.33,197.21,43.776884]
[1735466071253,1.5661,197.32,197.2,20.0]
[1735466071453,0.95051248,197.31,197.2,20.0]
[1735466072075,0.95051248,197.31,197.2,23.776884]
[1735466074278,0.95051248,197.31,197.23,20.0]
[1735466088791,1.5661,197.32,197.23,20.0]
[1735466088971,1.5661,197.32,197.24,23.776884]
[1735466089998,6.3583,197.34,197.24,23.776884]
[1735466090299,1.5409,197.37,197.27,20.0]
[1735466090475,0.95022186,197.36,197.27,20.0]
[1735466101598,0.95022186,197.36,197.28,23.776884]
[1735466102679,2.49104286,197.37,197.28,23.776884]
[1735466103580,1.5409,197.37,197.28,23.776884]
[1735466105209,1.5409,197.37,197.32,23.776884]
[1735466105580,1.5409,197.37,197.31,20.0]
[1735466106182,1.5409,197.37,197.33,20.0]
[1735466107287,1.5409,197.37,197.3,43.776884]
[1735466108828,1.5087,197.42,197.3,43.776884]
[1735466109036,0.94999993,197.41,197.3,43.776884]
[1735466110126,0.94999993,197.41,197.26,7.0779]
[1735466110306,0.94999993,197.41,197.29,20.0]
[1735466110507,20.94999993,197.41,197.26,7.0779]
[1735466110813,31.661184,197.4,197.2,7.2175]
[1735466111021,0.95028995,197.39,197.2,7.2175]
[1735466111419,0.95028995,197.39,197.27,20.0]
[1735466116533,7.8843,197.4,197.27,43.776884]
[1735466116739,7.8843,197.4,197.31,20.0]
[1735466116740,0.95000738,197.39,197.31,20.0]
[1735466117215,7.8843,197.4,197.31,20.0]
[1735466117417,0.9499832,197.39,197.31,20.0]
[1735466117630,7.8843,197.4,197.31,20.0]
[1735466118123,0.9499822,197.39,197.31,20.0]
[1735466119052,7.8843,197.4,197.31,20.0]
[1735466119352,1.5493,197.4,197.31,20.0]
[1735466126243,0.95006254,197.39,197.31,20.0]
[1735466127247,0.95007963,197.38,197.31,20.0]
[1735466127442,1.5493,197.4,197.31,20.0]
[1735466127628,0.95007169,197.39,197.31,20.0]
[1735466128445,1.5493,197.4,197.32,23.776884]
[1735466129048,0.95002877,197.44,197.32,23.776884]
[1735466131027,0.95002877,197.44,197.32,24.497284]
[1735466135227,0.95002877,197.44,197.32,23.776884]
[1735466141459,0.95002877,197.44,197.31,20.0]
[1735466144252,0.95002877,197.44,197.28,6.9571]
[1735466144253,20.0,197.42,197.28,6.9571]
[1735466144459,2.53570841,197.41,197.24,7.93273808]
[1735466144636,2.53570841,197.41,197.25,23.776884]
[1735466145359,2.53570841,197.41,197.28,20.0]
[1735466146164,22.53570841,197.41,197.28,23.776884]
[1735466146858,22.53570841,197.41,197.27,23.776884]
[1735466148257,6.6234,197.4,197.27,23.776884]
[1735466148431,0.95025045,197.39,197.27,23.776884]
[1735466150666,0.95025045,197.39,197.26,20.0]
[1735466150957,1.6339,197.38,197.26,20.0]
[1735466151132,20.95036523,197.37,197.23,7.028]
[1735466151435,20.95036523,197.37,197.24,23.776884]
[1735466152762,0.95036523,197.37,197.27,20.0]
[1735466154064,20.95036523,197.37,197.24,23.776884]
[1735466155839,20.95036523,197.37,197.23,0.7204]
[1735466163854,20.95036523,197.37,197.24,23.776884]
[1735466171371,20.95036523,197.37,197.21,20.0]
[1735466171673,1.6065,197.32,197.18,7.3693]
[1735466171972,0.95056548,197.31,197.18,7.3693]
[1735466172382,0.95056548,197.31,197.21,20.0]
[1735466178068,0.95056548,197.31,197.18,7.3693]
[1735466178679,0.95056548,197.31,197.19,23.776884]
[1735466178861,0.95056548,197.31,197.18,7.3693]
[1735466179464,6.0433,197.3,197.13,6.7598]
[1735466179666,6.0433,197.3,197.16,20.0]
[1735466179667,0.95069689,197.29,197.16,20.0]
[1735466180482,0.95069689,197.29,197.2,20.0]
[1735466185683,0.95069689,197.29,197.13,6.7598]
[1735466185878,1.6077,197.28,197.13,6.7598]
[1735466186062,0.95077248,197.27,197.14,23.776884]
[1735466186781,0.95077248,197.27,197.17,20.0]
[1735466187587,20.95077248,197.27,197.14,23.776884]
[1735466188260,20.95077248,197.27,197.16,20.0]
[1735466194289,20.95077248,197.27,197.13,6.7598]
[1735466194479,20.95077248,197.27,197.13,0.7204]
[1735466195094,20.95077248,197.27,197.14,23.776884]
[1735466203376,20.95077248,197.27,197.11,20.0]
[1735466203583,6.5335,197.25,197.11,20.0]
[1735466203803,0.95096062,197.24,197.11,20.0]
[1735466205204,0.95096062,197.24,197.09,0.7204]
[1735466205205,1.5277,197.23,197.09,0.7204]
[1735466205507,1.5277,197.23,197.1,23.776884]
[1735466205508,0.9509739,197.22,197.1,23.776884]
[1735466221109,0.9509739,197.22,197.09,0.7204]
[1735466221110,1.5277,197.23,197.14,23.776884]
[1735466224619,6.5335,197.25,197.14,23.776884]
[1735466224806,20.9506712,197.27,197.14,23.776884]
[1735466228814,0.9506712,197.27,197.18,23.776884]
[1735466229015,1.6133,197.28,197.17,43.776884]
[1735466235627,1.6133,197.28,197.18,2.50222415]
[1735466236311,1.6133,197.28,197.17,43.776884]
[1735466239010,0.95053588,197.27,197.17,43.776884]
[1735466243737,0.95053588,197.27,197.13,6.3664]
[1735466244036,0.95053588,197.27,197.14,23.776884]
[1735466244237,0.95053588,197.27,197.17,20.0]
[1735466246428,1.6133,197.28,197.18,23.776884]
[1735466246819,1.5415,197.33,197.18,24.497284]
[1735466247035,20.95046062,197.32,197.18,24.497284]
[1735466254766,20.95046062,197.32,197.21,20.0]
[1735466255050,1.5415,197.33,197.22,23.776884]
[1735466256223,0.95031976,197.32,197.22,23.776884]
[1735466259459,1.5415,197.33,197.26,23.776884]
[1735466259934,1.5415,197.33,197.2,23.776884]
[1735466260250,1.5415,197.33,197.24,23.776884]
[1735466260548,1.5415,197.33,197.23,43.776884]
[1735466260735,0.95032002,197.32,197.23,43.776884]
[1735466262026,0.95032002,197.32,197.19,6.1695]
[1735466262324,0.95032002,197.32,197.2,23.776884]
[1735466262951,0.95032002,197.32,197.23,20.0]
[1735466267356,1.5415,197.33,197.23,20.0]
[1735466270057,1.5415,197.33,197.23,43.776884]
[1735466270255,1.5415,197.33,197.22,6.4547]
[1735466270634,1.5415,197.33,197.25,20.0]
[1735466275063,1.5415,197.33,197.26,20.0]
[1735466278367,0.95027766,197.32,197.26,20.0]
[1735466278738,1.5415,197.33,197.26,20.0]
[1735466282163,1.528,197.39,197.27,23.776884]
[1735466282365,0.9501604,197.38,197.27,23.776884]
[1735466285242,0.9501604,197.38,197.24,20.7204]
[1735466285243,20.9501604,197.38,197.24,20.7204]
[1735466285740,20.9501604,197.38,197.25,23.776884]
[1735466285943,20.9501604,197.38,197.25,27.51053064]
[1735466286467,20.9501604,197.38,197.25,23.776884]
[1735466286967,20.9501604,197.38,197.24,20.0]
[1735466289183,6.1726,197.37,197.24,20.0]
[1735466289466,1.528,197.35,197.24,20.0]
[1735466289669,0.95032228,197.34,197.24,20.0]
[1735466293766,1.528,197.35,197.25,23.776884]
[1735466294150,1.528,197.35,197.28,20.0]
[1735466294575,0.95018461,197.34,197.28,20.0]
[1735466295276,2.47824399,197.35,197.25,20.0]
[1735466296378,1.528,197.35,197.25,20.0]
[1735466304153,1.528,197.35,197.26,23.776884]
[1735466306877,0.95020607,197.34,197.26,23.776884]
[1735466307358,0.95020607,197.34,197.19,6.8899]
[1735466307559,0.95020607,197.34,197.23,23.776884]
[1735466307959,0.95020607,197.34,197.25,23.776884]
[1735466308778,0.95020607,197.34,197.23,23.776884]
[1735466309689,0.95020607,197.34,197.22,20.0]
[1735466309886,0.95020607,197.34,197.24,2.51072388]
[1735466310095,0.95020607,197.34,197.24,22.51072388]
[1735466310391,0.95020607,197.34,197.24,20.0]
[1735466310591,0.95020607,197.34,197.25,3.7456399]
[1735466311194,0.95020607,197.34,197.24,20.0]
[1735466312193,0.95020607,197.34,197.25,3.74500803]
[1735466312495,0.95020607,197.34,197.24,20.0]
[1735466313693,0.95020607,197.34,197.25,3.7450619]
[1735466314295,0.95020607,197.34,197.24,20.0]
[1735466318402,9.90462642,197.25,197.24,43.776884]
[1735466318785,9.90462642,197.25,197.24,47.52088141]
[1735466320197,9.90462642,197.25,197.24,23.74399741]
[1735466320393,9.90462642,197.25,197.24,3.74399741]
[1735466320906,9.90462642,197.25,197.2,23.776884]
[1735466321088,9.90462642,197.22,197.2,23.776884]
[1735466321293,9.90462642,197.22,197.21,3.74486393]
[1735466321489,9.90462642,197.22,197.21,27.52174793]
[1735466323473,9.90462642,197.22,197.21,3.74486393]
[1735466323795,49.5231321,197.22,197.21,3.74486393]
[1735466324195,49.5231321,197.22,197.16,20.0]
[1735466324392,9.90462642,197.17,197.16,20.0]
[1735466324600,9.90462642,197.17,197.12,36.18770216]
[1735466324906,9.90462642,197.15,197.11,6.3731]
[1735466325102,9.90462642,197.15,197.14,23.776884]
[1735466325409,9.90462642,197.15,197.12,23.776884]
[1735466326312,9.90462642,197.15,197.14,20.0]
[1735466328910,9.90462642,197.16,197.15,20.0]
[1735466329104,1.6459,197.22,197.15,20.0]
[1735466329313,9.90462642,197.16,197.15,20.0]
[1735466331409,1.6459,197.22,197.15,20.0]
[1735466331609,9.90462642,197.16,197.15,20.0]
[1735466334511,1.6459,197.22,197.15,20.0]
[1735466334703,9.90462642,197.17,197.15,20.0]
[1735466336807,1.6459,197.22,197.15,20.0]
[1735466337015,9.90462642,197.2,197.17,20.0]
[1735466337190,9.90462642,197.2,197.18,23.776884]
[1735466337389,6.2828,197.25,197.18,23.776884]
[1735466337607,9.90462642,197.2,197.18,23.776884]
[1735466338713,1.6038,197.27,197.18,23.776884]
[1735466338912,9.90462642,197.21,197.2,43.776884]
[1735466341095,9.90462642,197.21,197.14,9.90462642]
[1735466341299,9.90462642,197.16,197.11,6.3731]
[1735466342504,9.90462642,197.16,197.14,20.0]
[1735466343018,9.90462642,197.17,197.14,20.0]
[1735466344922,9.90462642,197.16,197.15,23.776884]
[1735466345315,9.90462642,197.16,197.12,20.0]
[1735466345498,9.90462642,197.15,197.12,20.0]
[1735466345700,1.5078,197.21,197.14,43.776884]
[1735466346007,9.90462642,197.15,197.14,43.776884]
[1735466346402,9.90462642,197.15,197.12,20.0]
[1735466346605,9.90462642,197.13,197.07,7.93273808]
[1735466346916,9.90462642,197.11,197.07,7.93273808]
[1735466347299,9.90462642,197.11,197.1,20.0]
[1735466349427,9.90462642,197.11,197.1,23.776884]
[1735466349612,9.90462642,197.11,197.08,20.0]
[1735466350413,9.90462642,197.11,197.09,20.0]
[1735466351311,7.4647263,197.19,197.09,20.0]
[1735466351530,9.90462642,197.11,197.09,20.0]
[1735466354329,9.90462642,197.12,197.09,20.0]
[1735466354629,9.90462642,197.11,197.09,20.0]
[1735466355429,7.4647263,197.19,197.1,23.776884]
[1735466355635,9.90462642,197.14,197.1,23.776884]
[1735466356810,9.90462642,197.14,197.13,20.0]
[1735466359121,6.5138,197.19,197.13,20.0]
[1735466359329,9.90462642,197.14,197.13,20.0]
[1735466360936,9.90462642,197.15,197.13,20.0]
[1735466365730,9.90462642,197.16,197.13,20.0]
[1735466366228,1.5078,197.21,197.13,20.0]
[1735466366431,11.41242642,197.21,197.18,23.776884]
[1735466366636,9.90462642,197.21,197.2,20.0]
[1735466375773,9.90462642,197.21,197.15,20.0]
[1735466375936,2.46358247,197.26,197.19,20.0]
[1735466376138,1.513,197.26,197.19,20.0]
[1735466398394,6.5497,197.28,197.2,23.776884]
[1735466398867,6.5497,197.28,197.23,20.0]
[1735466399067,1.627,197.31,197.23,20.0]
[1735466401165,0.95039031,197.3,197.23,20.0]
[1735466401781,0.95039031,197.3,197.24,5.97681252]
[1735466402806,0.95039031,197.3,197.21,5.97681252]
[1735466403385,0.95039031,197.3,197.21,20.0]
[1735466406295,1.5669,197.28,197.17,6.22584637]
[1735466406503,1.5669,197.26,197.17,6.22584637]
[1735466406686,6.2746,197.24,197.17,6.22584637]
[1735466406877,0.9508402,197.23,197.17,6.22584637]
[1735466407206,1.5669,197.22,197.18,5.98889331]
[1735466407409,0.95089328,197.21,197.18,5.98889331]
[1735466407610,1.5669,197.22,197.18,5.98889331]
[1735466407818,1.5669,197.22,197.17,20.0]
[1735466417326,1.5566,197.27,197.17,20.0]
[1735466417897,0.95061572,197.26,197.17,20.0]
[1735466418130,0.95061659,197.26,197.17,20.0]
[1735466418422,1.5566,197.27,197.18,23.776884]
[1735466420325,1.5566,197.27,197.21,20.0]
[1735466420522,1.5566,197.32,197.21,20.0]
[1735466420727,2.50695817,197.32,197.21,20.0]
[1735466422124,2.50695817,197.32,197.25,20.0]
[1735466422327,2.50693094,197.32,197.25,20.0]
[1735466430437,2.50693094,197.32,197.14,15.27]
[1735466430747,2.50693094,197.32,197.21,20.0]
[1735466431933,2.50693094,197.32,197.17,20.0]
[1735466432325,2.50693094,197.32,197.21,20.0]
[1735466442163,2.50693094,197.32,197.22,23.776884]
[1735466442549,2.50693094,197.32,197.25,20.0]
[1735466443073,1.5566,197.32,197.25,20.0]
[1735466443239,0.9502219,197.36,197.25,20.0]
[1735466444758,8.1543,197.37,197.29,20.0]
[1735466445849,1.6263,197.37,197.29,20.0]
[1735466446152,1.6636,197.41,197.3,23.776884]
[1735466446355,0.94997716,197.4,197.3,23.776884]
[1735466448883,0.94997716,197.4,197.28,0.7204]
[1735466449385,0.94997716,197.4,197.29,23.776884]
[1735466453677,0.94997716,197.4,197.27,26.3463]
[1735466453896,0.94997716,197.4,197.27,20.0]
[1735466454049,0.94997716,197.4,197.29,20.0]
[1735466455152,0.94997716,197.4,197.27,23.776884]
[1735466455153,0.94997716,197.4,197.24,6.2218]
[1735466455553,0.94997716,197.4,197.27,20.0]
[1735466455880,20.0,197.39,197.24,6.2218]